Workbook

Sheet Лист1
A1: Дата | B1: tн.о 0С | C1: Т1/Т2 0С | D1: P1/P2 кг/см2 | E1: Механический счетчик | H1: Корректор | J1: Тепловой счетчик | L1: Счетчик воды | N1: Соль | O1: Электросчетчик | Q1: Приме-чание | R1: Работа котель-ной час.
E2: Показа-ния | F2: Показа-ния | G2: G м3 | H2: Показа-ния | I2: G м3 | J2: Показа-ния | K2: Гкал | L2: Показа-ния | M2: Vм3 | N2: кг | O2: Показа-ния | P2: кВт*ч
C3: 57/44 | D3: 3,8/2,6 | E3: 24000 | G3: =IF(SUM(E3:F3),E3-MAX($E2:E$3)+F3-MAX($F2:F$3),"") -> 0 | I3: =IF(SUM(H3:H3),H3-MAX($H2:H$3),"") ->  | K3: =IF(SUM(J3:J3),J3-MAX($J2:J$3),"") ->  | L3: 16.571 | M3: =IF(SUM(L3:L3),L3-MAX($L2:L$3),"") -> 0 | O3: 18113 | P3: =IF(SUM(O3:O3),O3-MAX($O2:O$3),"") -> 0 | R3: 24
C4: 57/44 | D4: 3,8/2,6 | E4: 24631 | G4: =IF(SUM(E4:F4),E4-MAX($E$3:E3)+F4-MAX($F$3:F3),"") -> 631 | I4: =IF(SUM(H4:H4),H4-MAX($H$3:H3),"") ->  | K4: =IF(SUM(J4:J4),J4-MAX($J$3:J3),"") ->  | L4: 16.571 | M4: =IF(SUM(L4:L4),L4-MAX($L$3:L3),"") -> 0 | O4: 18143 | P4: =IF(SUM(O4:O4),O4-MAX($O$3:O3),"") -> 30 | R4: 24
C5: 57/44 | D5: 3,7/2,5 | E5: 24761 | G5: =IF(SUM(E5:F5),E5-MAX($E$3:E4)+F5-MAX($F$3:F4),"") -> 130 | I5: =IF(SUM(H5:H5),H5-MAX($H$3:H4),"") ->  | K5: =IF(SUM(J5:J5),J5-MAX($J$3:J4),"") ->  | L5: 16.571 | M5: =IF(SUM(L5:L5),L5-MAX($L$3:L4),"") -> 0 | O5: 18165 | P5: =IF(SUM(O5:O5),O5-MAX($O$3:O4),"") -> 22 | R5: 24
C6: 57/44 | D6: 3,7/2,5 | E6: 24885 | G6: =IF(SUM(E6:F6),E6-MAX($E$3:E5)+F6-MAX($F$3:F5),"") -> 124 | I6: =IF(SUM(H6:H6),H6-MAX($H$3:H5),"") ->  | K6: =IF(SUM(J6:J6),J6-MAX($J$3:J5),"") ->  | L6: 16.574 | M6: =IF(SUM(L6:L6),L6-MAX($L$3:L5),"") -> 0.003 | O6: 18187 | P6: =IF(SUM(O6:O6),O6-MAX($O$3:O5),"") -> 22 | R6: 24
C7: 57/44 | D7: 3,6/2,4 | E7: 25013 | G7: =IF(SUM(E7:F7),E7-MAX($E$3:E6)+F7-MAX($F$3:F6),"") -> 128 | I7: =IF(SUM(H7:H7),H7-MAX($H$3:H6),"") ->  | K7: =IF(SUM(J7:J7),J7-MAX($J$3:J6),"") ->  | L7: 16.578 | M7: =IF(SUM(L7:L7),L7-MAX($L$3:L6),"") -> 0.004 | O7: 18216 | P7: =IF(SUM(O7:O7),O7-MAX($O$3:O6),"") -> 29 | R7: 24
C8: 58/46 | D8: 3,6/2,4 | E8: 25147 | G8: =IF(SUM(E8:F8),E8-MAX($E$3:E7)+F8-MAX($F$3:F7),"") -> 134 | I8: =IF(SUM(H8:H8),H8-MAX($H$3:H7),"") ->  | K8: =IF(SUM(J8:J8),J8-MAX($J$3:J7),"") ->  | L8: 16.578 | M8: =IF(SUM(L8:L8),L8-MAX($L$3:L7),"") -> 0 | O8: 18248 | P8: =IF(SUM(O8:O8),O8-MAX($O$3:O7),"") -> 32 | R8: 24
C9: 58/44 | D9: 3,5/2,3 | E9: 25289 | G9: =IF(SUM(E9:F9),E9-MAX($E$3:E8)+F9-MAX($F$3:F8),"") -> 142 | I9: =IF(SUM(H9:H9),H9-MAX($H$3:H8),"") ->  | K9: =IF(SUM(J9:J9),J9-MAX($J$3:J8),"") ->  | L9: 16.578 | M9: =IF(SUM(L9:L9),L9-MAX($L$3:L8),"") -> 0 | O9: 18275 | P9: =IF(SUM(O9:O9),O9-MAX($O$3:O8),"") -> 27 | R9: 24
C10: 58/44 | D10: 3,5/2,3 | E10: 25422 | G10: =IF(SUM(E10:F10),E10-MAX($E$3:E9)+F10-MAX($F$3:F9),"") -> 133 | I10: =IF(SUM(H10:H10),H10-MAX($H$3:H9),"") ->  | K10: =IF(SUM(J10:J10),J10-MAX($J$3:J9),"") ->  | L10: 16.579 | M10: =IF(SUM(L10:L10),L10-MAX($L$3:L9),"") -> 0.001 | O10: 18306 | P10: =IF(SUM(O10:O10),O10-MAX($O$3:O9),"") -> 31 | R10: 24
C11: 58/44 | D11: 3,5/2,3 | E11: 25561 | G11: =IF(SUM(E11:F11),E11-MAX($E$3:E10)+F11-MAX($F$3:F10),"") -> 139 | I11: =IF(SUM(H11:H11),H11-MAX($H$3:H10),"") ->  | K11: =IF(SUM(J11:J11),J11-MAX($J$3:J10),"") ->  | L11: 16.585 | M11: =IF(SUM(L11:L11),L11-MAX($L$3:L10),"") -> 0.006 | O11: 18345 | P11: =IF(SUM(O11:O11),O11-MAX($O$3:O10),"") -> 39 | R11: 24
C12: 58/44 | D12: 3,6/2,4 | E12: 25693 | G12: =IF(SUM(E12:F12),E12-MAX($E$3:E11)+F12-MAX($F$3:F11),"") -> 132 | I12: =IF(SUM(H12:H12),H12-MAX($H$3:H11),"") ->  | K12: =IF(SUM(J12:J12),J12-MAX($J$3:J11),"") ->  | L12: 16.588 | M12: =IF(SUM(L12:L12),L12-MAX($L$3:L11),"") -> 0.003 | O12: 18376 | P12: =IF(SUM(O12:O12),O12-MAX($O$3:O11),"") -> 31 | R12: 24
C13: 58/44 | D13: 3,5/2,3 | E13: 26276 | G13: =IF(SUM(E13:F13),E13-MAX($E$3:E12)+F13-MAX($F$3:F12),"") -> 583 | I13: =IF(SUM(H13:H13),H13-MAX($H$3:H12),"") ->  | K13: =IF(SUM(J13:J13),J13-MAX($J$3:J12),"") ->  | L13: 16.588 | M13: =IF(SUM(L13:L13),L13-MAX($L$3:L12),"") -> 0 | O13: 18400 | P13: =IF(SUM(O13:O13),O13-MAX($O$3:O12),"") -> 24 | R13: 24
C14: 58/44 | D14: 3,5/2,3 | E14: 26859 | G14: =IF(SUM(E14:F14),E14-MAX($E$3:E13)+F14-MAX($F$3:F13),"") -> 583 | I14: =IF(SUM(H14:H14),H14-MAX($H$3:H13),"") ->  | K14: =IF(SUM(J14:J14),J14-MAX($J$3:J13),"") ->  | L14: 16.588 | M14: =IF(SUM(L14:L14),L14-MAX($L$3:L13),"") -> 0 | O14: 18428 | P14: =IF(SUM(O14:O14),O14-MAX($O$3:O13),"") -> 28 | R14: 24
C15: 58/44 | D15: 3,5/2,3 | E15: 27442 | G15: =IF(SUM(E15:F15),E15-MAX($E$3:E14)+F15-MAX($F$3:F14),"") -> 583 | I15: =IF(SUM(H15:H15),H15-MAX($H$3:H14),"") ->  | K15: =IF(SUM(J15:J15),J15-MAX($J$3:J14),"") ->  | L15: 16.593 | M15: =IF(SUM(L15:L15),L15-MAX($L$3:L14),"") -> 0.005 | O15: 18464 | P15: =IF(SUM(O15:O15),O15-MAX($O$3:O14),"") -> 36 | R15: 24
C16: 57/44 | D16: 3,5/2,3 | E16: 28025 | G16: =IF(SUM(E16:F16),E16-MAX($E$3:E15)+F16-MAX($F$3:F15),"") -> 583 | I16: =IF(SUM(H16:H16),H16-MAX($H$3:H15),"") ->  | K16: =IF(SUM(J16:J16),J16-MAX($J$3:J15),"") ->  | L16: 16.595 | M16: =IF(SUM(L16:L16),L16-MAX($L$3:L15),"") -> 0.002 | O16: 18497 | P16: =IF(SUM(O16:O16),O16-MAX($O$3:O15),"") -> 33 | R16: 24
C17: 56/44 | D17: 3,4/2,2 | E17: 28608 | G17: =IF(SUM(E17:F17),E17-MAX($E$3:E16)+F17-MAX($F$3:F16),"") -> 583 | I17: =IF(SUM(H17:H17),H17-MAX($H$3:H16),"") ->  | K17: =IF(SUM(J17:J17),J17-MAX($J$3:J16),"") ->  | L17: 16.595 | M17: =IF(SUM(L17:L17),L17-MAX($L$3:L16),"") -> 0 | O17: 18523 | P17: =IF(SUM(O17:O17),O17-MAX($O$3:O16),"") -> 26 | R17: 24
A18: Итого | G18: =SUM(G3:G17) -> 4608 | I18: =SUM(I3:I17) -> 0 | K18: =SUM(K3:K17) -> 0 | M18: =SUM(M3:M17) -> 0.024 | N18: =SUM(N3:N17) -> 0 | P18: =SUM(P3:P17) -> 410 | R18: =SUM(R3:R17) -> 360

Sheet Лист1 (2)
A1: Дата | B1: tн.о 0С | C1: Т1/Т2 0С | D1: P1/P2 кг/см2 | E1: Механический счетчик | H1: Корректор | J1: Тепловой счетчик | L1: Счетчик воды | N1: Соль | O1: Электросчетчик | Q1: Приме-чание | R1: Работа котель-ной час.
E2: Показа-ния | F2: Показа-ния | G2: G м3 | H2: Показа-ния | I2: G м3 | J2: Показа-ния | K2: Гкал | L2: Показа-ния | M2: Vм3 | N2: кг | O2: Показа-ния | P2: кВт*ч
A3: 2017-12-01 | C3: 57/44 | D3: 3,8/2,6 | E3: 24000 | G3: =IF(SUM(E3:F3),E3-MAX($E2:E$3)+F3-MAX($F2:F$3),"") -> 0 | I3: =IF(SUM(H3:H3),H3-MAX($H2:H$3),"") ->  | K3: =IF(SUM(J3:J3),J3-MAX($J2:J$3),"") ->  | L3: 16.571 | M3: =IF(SUM(L3:L3),L3-MAX($L2:L$3),"") -> 0 | O3: 18113 | P3: =IF(SUM(O3:O3),O3-MAX($O2:O$3),"") -> 0 | R3: 24
A4: 2017-12-02 | C4: 57/44 | D4: 3,8/2,6 | E4: 24631 | G4: =IF(SUM(E4:F4),E4-MAX($E$3:E3)+F4-MAX($F$3:F3),"") -> 631 | I4: =IF(SUM(H4:H4),H4-MAX($H$3:H3),"") ->  | K4: =IF(SUM(J4:J4),J4-MAX($J$3:J3),"") ->  | L4: 16.571 | M4: =IF(SUM(L4:L4),L4-MAX($L$3:L3),"") -> 0 | O4: 18143 | P4: =IF(SUM(O4:O4),O4-MAX($O$3:O3),"") -> 30 | R4: 24
A5: 2017-12-03 | C5: 57/44 | D5: 3,7/2,5 | E5: 24761 | G5: =IF(SUM(E5:F5),E5-MAX($E$3:E4)+F5-MAX($F$3:F4),"") -> 130 | I5: =IF(SUM(H5:H5),H5-MAX($H$3:H4),"") ->  | K5: =IF(SUM(J5:J5),J5-MAX($J$3:J4),"") ->  | L5: 16.571 | M5: =IF(SUM(L5:L5),L5-MAX($L$3:L4),"") -> 0 | O5: 18165 | P5: =IF(SUM(O5:O5),O5-MAX($O$3:O4),"") -> 22 | R5: 24
A6: 2017-12-04 | C6: 57/44 | D6: 3,7/2,5 | E6: 24885 | G6: =IF(SUM(E6:F6),E6-MAX($E$3:E5)+F6-MAX($F$3:F5),"") -> 124 | I6: =IF(SUM(H6:H6),H6-MAX($H$3:H5),"") ->  | K6: =IF(SUM(J6:J6),J6-MAX($J$3:J5),"") ->  | L6: 16.574 | M6: =IF(SUM(L6:L6),L6-MAX($L$3:L5),"") -> 0.003 | O6: 18187 | P6: =IF(SUM(O6:O6),O6-MAX($O$3:O5),"") -> 22 | R6: 24
A7: 2017-12-05 | C7: 57/44 | D7: 3,6/2,4 | E7: 25013 | G7: =IF(SUM(E7:F7),E7-MAX($E$3:E6)+F7-MAX($F$3:F6),"") -> 128 | I7: =IF(SUM(H7:H7),H7-MAX($H$3:H6),"") ->  | K7: =IF(SUM(J7:J7),J7-MAX($J$3:J6),"") ->  | L7: 16.578 | M7: =IF(SUM(L7:L7),L7-MAX($L$3:L6),"") -> 0.004 | O7: 18216 | P7: =IF(SUM(O7:O7),O7-MAX($O$3:O6),"") -> 29 | R7: 24
A8: 2017-12-06 | C8: 58/46 | D8: 3,6/2,4 | E8: 25147 | G8: =IF(SUM(E8:F8),E8-MAX($E$3:E7)+F8-MAX($F$3:F7),"") -> 134 | I8: =IF(SUM(H8:H8),H8-MAX($H$3:H7),"") ->  | K8: =IF(SUM(J8:J8),J8-MAX($J$3:J7),"") ->  | L8: 16.578 | M8: =IF(SUM(L8:L8),L8-MAX($L$3:L7),"") -> 0 | O8: 18248 | P8: =IF(SUM(O8:O8),O8-MAX($O$3:O7),"") -> 32 | R8: 24
A9: 2017-12-07 | C9: 58/44 | D9: 3,5/2,3 | E9: 25289 | G9: =IF(SUM(E9:F9),E9-MAX($E$3:E8)+F9-MAX($F$3:F8),"") -> 142 | I9: =IF(SUM(H9:H9),H9-MAX($H$3:H8),"") ->  | K9: =IF(SUM(J9:J9),J9-MAX($J$3:J8),"") ->  | L9: 16.578 | M9: =IF(SUM(L9:L9),L9-MAX($L$3:L8),"") -> 0 | O9: 18275 | P9: =IF(SUM(O9:O9),O9-MAX($O$3:O8),"") -> 27 | R9: 24
A10: 2017-12-08 | C10: 58/44 | D10: 3,5/2,3 | E10: 25422 | G10: =IF(SUM(E10:F10),E10-MAX($E$3:E9)+F10-MAX($F$3:F9),"") -> 133 | I10: =IF(SUM(H10:H10),H10-MAX($H$3:H9),"") ->  | K10: =IF(SUM(J10:J10),J10-MAX($J$3:J9),"") ->  | L10: 16.579 | M10: =IF(SUM(L10:L10),L10-MAX($L$3:L9),"") -> 0.001 | O10: 18306 | P10: =IF(SUM(O10:O10),O10-MAX($O$3:O9),"") -> 31 | R10: 24
A11: 2017-12-09 | C11: 58/44 | D11: 3,5/2,3 | E11: 25561 | G11: =IF(SUM(E11:F11),E11-MAX($E$3:E10)+F11-MAX($F$3:F10),"") -> 139 | I11: =IF(SUM(H11:H11),H11-MAX($H$3:H10),"") ->  | K11: =IF(SUM(J11:J11),J11-MAX($J$3:J10),"") ->  | L11: 16.585 | M11: =IF(SUM(L11:L11),L11-MAX($L$3:L10),"") -> 0.006 | O11: 18345 | P11: =IF(SUM(O11:O11),O11-MAX($O$3:O10),"") -> 39 | R11: 24
A12: 2017-12-10 | C12: 58/44 | D12: 3,6/2,4 | E12: 25693 | G12: =IF(SUM(E12:F12),E12-MAX($E$3:E11)+F12-MAX($F$3:F11),"") -> 132 | I12: =IF(SUM(H12:H12),H12-MAX($H$3:H11),"") ->  | K12: =IF(SUM(J12:J12),J12-MAX($J$3:J11),"") ->  | L12: 16.588 | M12: =IF(SUM(L12:L12),L12-MAX($L$3:L11),"") -> 0.003 | O12: 18376 | P12: =IF(SUM(O12:O12),O12-MAX($O$3:O11),"") -> 31 | R12: 24
A13: 2017-12-11 | C13: 58/44 | D13: 3,5/2,3 | E13: 26276 | G13: =IF(SUM(E13:F13),E13-MAX($E$3:E12)+F13-MAX($F$3:F12),"") -> 583 | I13: =IF(SUM(H13:H13),H13-MAX($H$3:H12),"") ->  | K13: =IF(SUM(J13:J13),J13-MAX($J$3:J12),"") ->  | L13: 16.588 | M13: =IF(SUM(L13:L13),L13-MAX($L$3:L12),"") -> 0 | O13: 18400 | P13: =IF(SUM(O13:O13),O13-MAX($O$3:O12),"") -> 24 | R13: 24
A14: 2017-12-12 | C14: 58/44 | D14: 3,5/2,3 | E14: 26859 | G14: =IF(SUM(E14:F14),E14-MAX($E$3:E13)+F14-MAX($F$3:F13),"") -> 583 | I14: =IF(SUM(H14:H14),H14-MAX($H$3:H13),"") ->  | K14: =IF(SUM(J14:J14),J14-MAX($J$3:J13),"") ->  | L14: 16.588 | M14: =IF(SUM(L14:L14),L14-MAX($L$3:L13),"") -> 0 | O14: 18428 | P14: =IF(SUM(O14:O14),O14-MAX($O$3:O13),"") -> 28 | R14: 24
A15: 2017-12-13 | C15: 58/44 | D15: 3,5/2,3 | E15: 27442 | G15: =IF(SUM(E15:F15),E15-MAX($E$3:E14)+F15-MAX($F$3:F14),"") -> 583 | I15: =IF(SUM(H15:H15),H15-MAX($H$3:H14),"") ->  | K15: =IF(SUM(J15:J15),J15-MAX($J$3:J14),"") ->  | L15: 16.593 | M15: =IF(SUM(L15:L15),L15-MAX($L$3:L14),"") -> 0.005 | O15: 18464 | P15: =IF(SUM(O15:O15),O15-MAX($O$3:O14),"") -> 36 | R15: 24
A16: 2017-12-14 | C16: 57/44 | D16: 3,5/2,3 | E16: 28025 | G16: =IF(SUM(E16:F16),E16-MAX($E$3:E15)+F16-MAX($F$3:F15),"") -> 583 | I16: =IF(SUM(H16:H16),H16-MAX($H$3:H15),"") ->  | K16: =IF(SUM(J16:J16),J16-MAX($J$3:J15),"") ->  | L16: 16.595 | M16: =IF(SUM(L16:L16),L16-MAX($L$3:L15),"") -> 0.002 | O16: 18497 | P16: =IF(SUM(O16:O16),O16-MAX($O$3:O15),"") -> 33 | R16: 24
A17: 2017-12-15 | C17: 56/44 | D17: 3,4/2,2 | E17: 28608 | G17: =IF(SUM(E17:F17),E17-MAX($E$3:E16)+F17-MAX($F$3:F16),"") -> 583 | I17: =IF(SUM(H17:H17),H17-MAX($H$3:H16),"") ->  | K17: =IF(SUM(J17:J17),J17-MAX($J$3:J16),"") ->  | L17: 16.595 | M17: =IF(SUM(L17:L17),L17-MAX($L$3:L16),"") -> 0 | O17: 18523 | P17: =IF(SUM(O17:O17),O17-MAX($O$3:O16),"") -> 26 | R17: 24
A18: Итого | G18: =SUM(G3:G17) -> 4608 | I18: =SUM(I3:I17) -> 0 | K18: =SUM(K3:K17) -> 0 | M18: =SUM(M3:M17) -> 0.024 | N18: =SUM(N3:N17) -> 0 | P18: =SUM(P3:P17) -> 410 | R18: =SUM(R3:R17) -> 360
